fUSD/lending_fUSD_20251002
["ID","MTS","AMOUNT","RATE_DAILY","PERIOD"]
[388844211,1759414244552,-957.61,0.00021917,2]
[388844212,1759414244562,-1221.99,0.00021917,2]
[388844213,1759414244571,-500.0,0.00021917,2]
[388844214,1759414244586,-500.0,0.00021917,2]
[388844215,1759414244595,-500.0,0.00021917,2]
[388844216,1759414244604,-500.0,0.00021917,2]
[388844217,1759414244614,-500.0,0.00021917,2]
[388844218,1759414244623,-500.0,0.00021917,2]
[388844219,1759414244633,-500.0,0.00021917,2]
[388844220,1759414244643,-500.0,0.00021917,2]
[388844221,1759414244653,-500.0,0.00021917,2]
[388844222,1759414244664,-1889.83,0.00021917,2]
[388844223,1759414244675,-500.0,0.00021917,2]
[388844224,1759414244684,-3256.15,0.00021917,2]
[388844225,1759414244694,-500.0,0.00021917,2]
[388844226,1759414244703,-500.0,0.00021917,2]
[388844227,1759414244712,-570.29,0.00021917,2]
[388844228,1759414244722,-500.0,0.00021917,2]
[388844229,1759414244732,-669.9,0.00021917,2]
[388844230,1759414244743,-500.0,0.00021917,2]
[388844231,1759414244754,-201.32956175,0.00021917,2]
[388844232,1759414244763,-500.0,0.00021917,2]
[388844233,1759414244773,-2518.69,0.00021917,2]
[388844234,1759414244782,-500.0,0.00021917,2]
[388844235,1759414244792,-2189.52,0.00021917,2]
[388844236,1759414244801,-132.44628518,0.00021917,2]
[388844239,1759414246216,-367.55371482,0.00021917,2]
[388844240,1759414246226,-500.0,0.00021917,2]
[388844241,1759414246236,-500.0,0.00021917,2]
[388844242,1759414246245,-533.1,0.00021917,2]
[388844243,1759414246254,-500.0,0.00021917,2]
[388844244,1759414246264,-1180.69,0.00021917,2]
[388844245,1759414246273,-551.68,0.00021917,2]
[388844246,1759414246282,-293.47265696,0.00021917,2]
[388844247,1759414246304,-264.80936557,0.00021917,2]
[388844248,1759414246315,-748.97500376,0.00021917,2]
[388844249,1759414246327,-593.28297371,0.00021917,2]
[388844250,1759414246336,-500.0,0.00021917,2]
[388844251,1759414246346,-815.72,0.00021917,2]
[388844252,1759414246355,-500.0,0.00021917,2]
[388844253,1759414246364,-3474.61,0.00021917,2]
[388844254,1759414246374,-500.0,0.00021917,2]
[388844255,1759414246383,-215.33,0.00021917,2]
[388844256,1759414246393,-500.0,0.00021917,2]
[388844257,1759414246402,-500.0,0.00021917,2]
[388844258,1759414246412,-1419.48,0.00021917,2]
[388844259,1759414246421,-500.0,0.00021917,2]
[388844260,1759414246431,-301.13182971,0.00021917,2]
[388844261,1759414246508,-198.86817029,0.00021917,2]
[388844262,1759414246518,-530.12,0.00021917,2]
[388844263,1759414246528,-740.52,0.00021917,2]
[388844264,1759414246537,-500.0,0.00021917,2]
[388844265,1759414246547,-500.0,0.00021917,2]
[388844266,1759414246557,-500.0,0.00021917,2]
[388844267,1759414246566,-2686.93,0.00021917,2]
[388844268,1759414246575,-500.0,0.00021917,2]
[388844269,1759414246585,-500.0,0.00021917,2]
[388844270,1759414246596,-500.0,0.00021917,2]
[388844272,1759414246605,-151.0,0.00021917,2]
[388844273,1759414246614,-500.0,0.00021917,2]
[388844275,1759414246623,-234.696756,0.00021917,2]
[388844276,1759414246632,-500.0,0.00021917,2]
[388844277,1759414246642,-4564.12,0.00021917,2]
[388844278,1759414246651,-500.0,0.00021917,2]
[388844279,1759414246661,-500.0,0.00021917,2]
[388844280,1759414246671,-500.0,0.00021917,2]
[388844281,1759414246680,-500.0,0.00021917,2]
[388844282,1759414246690,-2719.34,0.00021917,2]
[388844283,1759414246700,-680.26,0.00021917,2]
[388844284,1759414246709,-500.0,0.00021917,2]
[388844285,1759414246719,-500.0,0.00021917,2]
[388844286,1759414246728,-500.0,0.00021917,2]
[388844287,1759414246738,-500.0,0.00021917,2]
[388844288,1759414246748,-500.0,0.00021917,2]
[388844289,1759414246758,-1827.19,0.00021917,2]
[388844290,1759414246767,-500.0,0.00021917,2]
[388844291,1759414246776,-500.0,0.00021917,2]
[388844292,1759414246786,-1747.53,0.00021917,2]
[388844293,1759414246796,-370.69968522,0.00021917,2]
[388844294,1759414246806,-1607.57,0.00021917,2]
[388844295,1759414246815,-500.0,0.00021917,2]
[388844296,1759414246825,-1187.02,0.00021917,2]
[388844297,1759414246835,-500.0,0.00021917,2]
[388844298,1759414246844,-1058.22,0.00021917,2]
[388844299,1759414246854,-500.0,0.00021917,2]
[388844300,1759414246863,-500.0,0.00021917,2]
[388844301,1759414246873,-500.0,0.00021917,2]
[388844302,1759414246883,-500.0,0.00021917,2]
[388844303,1759414246892,-500.0,0.00021917,2]
[388844304,1759414246902,-500.0,0.00021917,2]
[388844305,1759414246912,-1819.37,0.00021917,2]
[388844306,1759414246921,-500.0,0.00021917,2]
[388844307,1759414246933,-1244.11,0.00021917,2]
[388844308,1759414246943,-2164.14,0.00021917,2]
[388844309,1759414246952,-500.0,0.00021917,2]
[388844310,1759414246962,-500.0,0.00021917,2]
[388844311,1759414246971,-572.44,0.00021917,2]
[388844312,1759414246981,-1384.19,0.00021917,2]
[388844313,1759414246991,-500.0,0.00021917,2]
[388844314,1759414247002,-500.0,0.00021917,2]
[388844315,1759414247011,-500.0,0.00021917,2]
[388844316,1759414247021,-500.0,0.00021917,2]
[388844317,1759414247031,-500.0,0.00021917,2]
[388844318,1759414247040,-500.0,0.00021917,2]
[388844319,1759414247050,-3122.52,0.00021917,2]
[388844320,1759414247059,-500.0,0.00021917,2]
[388844321,1759414247069,-1772.61,0.00021917,2]
[388844322,1759414247079,-2974.24,0.00021917,2]
[388844323,1759414247088,-393.9366641,0.00021917,2]
[388844324,1759414247098,-2708.0,0.00021917,2]
[388844325,1759414247109,-500.0,0.00021917,2]
[388844326,1759414247119,-500.0,0.00021917,2]
[388844327,1759414247128,-500.0,0.00021917,2]
[388844328,1759414247139,-500.0,0.00021917,2]
[388844329,1759414247152,-500.0,0.00021917,2]
[388844330,1759414247162,-500.0,0.00021917,2]
[388844331,1759414247171,-500.0,0.00021917,2]
[388844332,1759414247183,-530.85,0.00021917,2]
[388844333,1759414247192,-500.0,0.00021917,2]
[388844334,1759414247203,-500.0,0.00021917,2]
[388844335,1759414247213,-556.96,0.00021917,2]
[388844336,1759414247223,-1663.29,0.00021917,2]
[388844337,1759414247233,-500.0,0.00021917,2]
[388844338,1759414247242,-2550.95945137,0.00021917,2]
[388844339,1759414247261,-433.26841755,0.00021917,2]
[388844340,1759414247314,-1344.54689777,0.00021917,2]
[388844341,1759414247326,-330.21222,0.00021917,2]
[388844362,1759414979385,175.48,0.00010358,2]
[388844363,1759415114791,-633.53999998,0.00017,2]
[388844364,1759415121745,-2433.78108177,0.00017,2]
[388844365,1759415128769,-170.8140375,0.00017,2]
[388844366,1759415135789,-150.0,0.00017,2]
[388844367,1759415142822,-191.266,0.00017,2]
[388844368,1759415151034,-500.0,0.00017,2]
[388844369,1759415157472,-150.0,0.00017,2]
[388844372,1759415172649,-150.0,0.00017,2]
[388844373,1759415179022,-159.92,0.00016915,2]
[388844375,1759415374132,-3.482179,0.00016915,2]
[388844376,1759415374153,-300.0,0.00016998,2]
[388844377,1759415374173,-330.86139327,0.00016999,2]
[388844378,1759415374193,-353.81433445,0.00016999,2]
[388844379,1759415374216,-243.64440695,0.00016999,2]
[388844380,1759415374239,-500.0,0.00016999,2]
[388844381,1759415374260,-576.84686083,0.00016999,2]
[388844382,1759415374283,-500.0,0.00016999,2]
[388844383,1759415374305,-1453.1411135,0.00017,2]
[388844409,1759415432546,-300.34751347,0.0001699,2]
[388844410,1759415432558,-1499.99875991,0.0001699,2]
[388844411,1759415432571,-3914.45372662,0.0001699,2]
[388844412,1759415432581,-5714.8,0.0001699,2]
[388844413,1759415432592,-300.0,0.00016999,2]
[388844414,1759415432603,-1200.0,0.00016999,2]
[388844415,1759415432616,-9372.75908442,0.00017,2]
[388844416,1759415432630,-8014.3424,0.00017,2]
[388844417,1759415432642,-7171.2,0.00017,2]
[388844418,1759415432659,-3932.18516204,0.00017,2]
[388844419,1759415432671,-35902.01728721,0.00017,2]
[388844420,1759415432701,-951.31643728,0.00017,2]
[388844421,1759415432832,-295.60861375,0.00017,2]
[388844422,1759415432845,-1095.58800653,0.00017,2]
[388844423,1759415432858,-3758.87460846,0.00017,2]
[388844424,1759415432871,-26898.4508356,0.00017,2]
[388844425,1759415432885,-1305.0,0.00017,2]
[388844426,1759415436079,-5852.88835788,0.00017,2]
[388844427,1759415436093,-2308.74451717,0.00017,2]
[388844429,1759415436107,-401.79,0.00017,2]
[388844430,1759415436121,-381.50450315,0.00017,2]
[388844448,1759415438144,-75596.29240064,0.00017,2]
[388844449,1759415438161,-172284.1691886,0.00017,2]
[388844450,1759415438312,-261602.81598947,0.00017,2]
[388844451,1759415438324,-546.45987651,0.00018366,2]
[388844452,1759415438335,-399.72918336,0.00018466,2]
[388844453,1759415438348,-150.0,0.00018606,2]
[388844454,1759415438360,-2000.0,0.00018606,2]
[388844455,1759415438371,-1680.0,0.00018659,2]
[388844456,1759415438383,-172.68706543,0.000187,2]
[388844457,1759415438395,-500.0,0.000187,2]
[388844459,1759415438408,-399.72918331,0.00018991,2]
[388844461,1759415438419,-5718.85464372,0.00019,2]
[388844463,1759415438430,-546.4598765,0.00019016,2]
[388844465,1759415438442,-399.72918331,0.00019515,2]
[388844467,1759415438454,-916.3854227,0.00019547,7]
[388844470,1759415438465,-546.4598765,0.00019665,2]
[388844472,1759415438477,-250.1938001,0.00019701,2]
[388844474,1759415438489,-150.0,0.00019701,2]
[388844477,1759415438500,-150.0,0.00019701,2]
[388844479,1759415438513,-150.0,0.00019701,2]
[388844481,1759415438525,-150.0,0.00019701,2]
[388844483,1759415438538,-150.0,0.00019701,2]
[388844486,1759415438551,-399.72918331,0.0002004,2]
[388844488,1759415438562,-546.4598765,0.00020315,2]
[388844490,1759415438574,-480.0,0.00020481,2]
[388844493,1759415438586,-399.72918331,0.00020564,2]
[388844495,1759415438597,-195.0,0.00020663,2]
[388844497,1759415438609,-175.48,0.00020715,2]
[388844499,1759415438622,-195.0,0.00020806,2]
[388844501,1759415438634,-1808.83961076,0.00020809,2]
[388844503,1759415438646,-207.25,0.00020875,2]
[388844506,1759415438658,-270.37,0.000209,2]
[388844508,1759415438669,-270.37,0.000209,2]
[388844510,1759415438682,-175.56,0.00020914,2]
[388844512,1759415438694,-231.28369723,0.00020926,2]
[388844515,1759415438706,-578.20924309,0.00020926,2]
[388844517,1759415438717,-566.75,0.00020939,2]
[388844519,1759415438729,-150.72,0.00020939,2]
[388844521,1759415438740,-150.46,0.00020939,2]
[388844524,1759415438752,-429.68,0.00020988,2]
[388844526,1759415438764,-154.69,0.00020997,2]
[388844528,1759415438776,-270.37,0.00021,2]
[388844575,1759415439625,-399.72918331,0.00021089,2]
[388844576,1759415439678,-152.0,0.000212,2]
[388844577,1759415439711,-152.0,0.000213,3]
[388844578,1759415439730,-270.37,0.000213,2]
[388844579,1759415439740,-4773.8461272,0.00021532,2]
[388844580,1759415439750,-355.59933735,0.00021533,2]
[388844581,1759415439770,-396.87660978,0.00021537,2]
[388844582,1759415439781,-198.1445458,0.00021538,2]
[388844583,1759415439792,-161.1205176,0.00021545,2]
[388844584,1759415439802,-235.38347289,0.00021545,2]
[388844585,1759415439814,-374.78548365,0.00021549,2]
[388844586,1759415439824,-247.42289874,0.00021549,2]
[388844587,1759415439834,-205.80303106,0.0002155,2]
[388844588,1759415439844,-801.98341151,0.00021553,2]
[388844589,1759415439854,-801.98341151,0.00021553,2]
[388844590,1759415439864,-244.32330365,0.00021554,2]
[388844591,1759415439876,-183.74394315,0.00021555,2]
[388844592,1759415439887,-396.87660978,0.00021555,2]
[388844593,1759415439897,-4773.8461272,0.00021557,2]
[388844594,1759415439907,-168.0,0.00021558,2]
[388844595,1759415439918,-283.05525423,0.00021558,2]
[388844596,1759415439928,-355.59933735,0.00021562,2]
[388844597,1759415439939,-355.59933735,0.00021567,2]
[388844598,1759415439948,-161.1205176,0.00021567,2]
[388844599,1759415439958,-247.42289874,0.00021568,2]
[388844600,1759415439968,-183.74394315,0.00021571,2]
[388844601,1759415439979,-474.46640526,0.00021576,2]
[388844602,1759415439990,-211.44836231,0.00021576,2]
[388844603,1759415440000,-374.78548365,0.00021577,2]
[388844604,1759415440010,-153.53277512,0.00021579,2]
[388844605,1759415440020,-205.80303106,0.00021583,2]
[388844606,1759415440031,-474.46640526,0.00021586,2]
[388844607,1759415440043,-370.49393606,0.0002159,2]
[388844610,1759415440054,-235.38347289,0.00021592,2]
[388844613,1759415440064,-801.98341151,0.00021592,2]
[388844616,1759415440074,-244.32330365,0.00021594,2]
[388844617,1759415440084,-205.80303106,0.00021594,2]
[388844619,1759415440094,-396.87660978,0.00021595,2]
[388844620,1759415440104,-153.53277512,0.000216,2]
[388844621,1759415440114,-205.80303106,0.00021601,2]
[388844622,1759415440124,-235.38347289,0.00021602,2]
[388844623,1759415440134,-247.42289874,0.00021604,2]
[388844624,1759415440145,-637.92325056,0.00021606,2]
[388844625,1759415440155,-2500.0,0.00021606,2]
[388844626,1759415440164,-183.74394315,0.00021606,2]
[388844627,1759415440175,-244.32330365,0.00021608,2]
[388844628,1759415440185,-161.1205176,0.00021611,2]
[388844629,1759415440195,-399.72918331,0.00021613,2]
[388844630,1759415440204,-474.46640526,0.00021614,2]
[388844631,1759415440214,-247.42289874,0.00021615,2]
[388844632,1759415440224,-283.05525423,0.00021619,2]
[388844633,1759415440234,-355.59933735,0.0002162,2]
[388844634,1759415440243,-374.78548365,0.00021624,2]
[388844635,1759415440253,-183.74394315,0.00021628,2]
[388844636,1759415440262,-198.1445458,0.00021628,2]
[388844637,1759415440272,-153.53277512,0.00021629,2]
[388844638,1759415440284,-247.42289874,0.0002163,2]
[388844639,1759415440293,-161.1205176,0.00021631,2]
[388844640,1759415440303,-211.44836231,0.00021632,2]
[388844641,1759415440312,-374.78548365,0.00021634,2]
[388844642,1759415440321,-211.44836231,0.00021638,2]
[388844643,1759415440331,-4773.8461272,0.00021641,2]
[388844644,1759415440340,-801.98341151,0.00021647,2]
[388844645,1759415440350,-161.1205176,0.00021649,2]
[388844646,1759415440360,-198.1445458,0.00021653,2]
[388844647,1759415440369,-235.38347289,0.00021654,2]
[388844648,1759415440379,-283.05525423,0.00021656,2]
[388844649,1759415440388,-2391.23596265,0.00021657,2]
[388844650,1759415440398,-474.46640526,0.00021658,2]
[388844651,1759415440408,-211.44836231,0.00021659,2]
[388844652,1759415440418,-396.87660978,0.0002166,2]
[388844653,1759415440427,-396.87660978,0.0002166,2]
[388844654,1759415440437,-355.59933735,0.00021661,2]
[388844655,1759415440449,-283.05525423,0.00021663,2]
[388844656,1759415440459,-235.38347289,0.00021664,2]
[388844657,1759415440468,-198.1445458,0.00021665,2]
[388844658,1759415440478,-801.98341151,0.00021667,2]
[388844659,1759415440488,-183.74394315,0.00021667,2]
[388844660,1759415440497,-374.78548365,0.00021668,2]
[388844661,1759415440507,-168.0,0.00021668,2]
[388844662,1759415440517,-198.1445458,0.00021669,2]
[388844663,1759415440526,-211.44836231,0.00021669,2]
[388844664,1759415440538,-153.53277512,0.0002167,2]
[388844665,1759415440548,-244.32330365,0.00021677,2]
[388844666,1759415440557,-150.0,0.00021684,2]
[388844667,1759415440567,-283.05525423,0.00021686,2]
[388844668,1759415440577,-4773.8461272,0.00021686,2]
[388844669,1759415440586,-238.37363812,0.00021686,2]
[388844670,1759415440595,-312.53432553,0.00021687,2]
[388844671,1759415440605,-474.46640526,0.00021687,2]
[388844672,1759415440615,-244.32330365,0.00021689,2]
[388844673,1759415440628,-205.80303106,0.00021689,2]
[388844674,1759415440638,-386.69501294,0.00021689,2]
[388844676,1759415440647,-460.85570036,0.00021691,2]
[388844677,1759415440657,-535.01638777,0.00021692,2]
[388844678,1759415440667,-4773.8461272,0.00021692,2]
[388844679,1759415440676,-153.53277512,0.00021692,2]
[388844680,1759415440686,-322.6107,0.00021693,2]
[388844681,1759415440695,-500.0,0.00021693,2]
[388844682,1759415440706,-500.0,0.00021693,2]
[388844683,1759415440715,-500.0,0.00021693,2]
[388844684,1759415440725,-500.0,0.00021693,2]
[388844685,1759415440734,-500.0,0.00021693,2]
[388844686,1759415440743,-500.0,0.00021693,2]
[388844687,1759415440752,-500.0,0.00021693,2]
[388844688,1759415440762,-500.0,0.00021693,2]
[388844689,1759415440772,-500.0,0.00021693,2]
[388844690,1759415440783,-500.0,0.00021693,2]
[388844691,1759415440792,-500.0,0.00021693,2]
[388844692,1759415440802,-500.0,0.00021693,2]
[388844693,1759415440811,-500.0,0.00021693,2]
[388844694,1759415440821,-500.0,0.00021693,2]
[388844695,1759415440831,-500.0,0.00021693,2]
[388844696,1759415440841,-500.0,0.00021693,2]
[388844697,1759415440850,-500.0,0.00021693,2]
[388844698,1759415440860,-500.0,0.00021693,2]
[388844699,1759415440870,-500.0,0.00021693,2]
[388844700,1759415440880,-500.0,0.00021693,2]
[388844701,1759415440889,-629.50371889,0.00021693,2]
[388844702,1759415440899,-609.17707518,0.00021694,2]
[388844703,1759415440910,-151.49,0.00021696,2]
[388844704,1759415440921,-683.3377626,0.00021696,2]
[388844705,1759415440937,-179.885,0.00021705,2]
[388844706,1759415440947,-1621.129,0.00021705,2]
[388844707,1759415440957,-1330.1086786,0.00021706,2]
[388844708,1759415440966,-1086961.69640049,0.00021706,2]
[388844709,1759415440976,-1000.0,0.00021706,2]
[388844710,1759415440985,-33330.1916,0.00021706,2]
[388844711,1759415440994,-145481.8758,0.00021706,2]
[388844712,1759415441003,-1000.0,0.00021717,2]
[388844713,1759415441013,-274.52401732,0.00021794,2]
[388844714,1759415441023,-311.56,0.00021805,2]
[388844715,1759415441033,-5000.0,0.00021817,2]
[388844716,1759415441042,-159.91170013,0.00021817,2]
[388844717,1759415441052,-490.7563578,0.00021817,2]
[388844718,1759415441062,-526.95716262,0.00021882,2]
[388844719,1759415441072,-2125420.29459626,0.0002189,4]
[388844720,1759415441086,-1879.34176188,0.0002189,4]
[388844721,1759415441809,-817.68834929,0.00018266,2]
[388844722,1759415441822,-3125.49190937,0.00018266,2]
[388844723,1759415441834,-2450.08099561,0.00018266,2]
[388844724,1759415441848,-5652.26343475,0.00018266,2]
[388844725,1759415441892,-495.621193,0.00018266,2]
[388844726,1759415442044,-45.84704021,0.00018266,2]
[388844727,1759415442055,-593.31996606,0.00018266,2]
[388844728,1759415442065,-5022.83299373,0.0002189,4]
[388844729,1759415442091,-876.00000009,0.0002189,4]
[388844738,1759415443794,-546.4598765,0.00020964,2]
[388844739,1759415443805,-14369.83022349,0.0002189,4]
[388844740,1759415443816,-17604.80000002,0.0002189,4]
[388844748,1759415446651,-2001.15087303,0.00018691,2]
[388844749,1759415446684,-5297.78939491,0.00018691,2]
[388844750,1759415446695,-1168.72708873,0.00018691,2]
[388844754,1759415902131,-200.0,0.000214,7]
[388844755,1759415902159,-500.0,0.000215,7]
[388844756,1759415918005,-800.0,0.000216,7]
[388844757,1759415918036,-127.42,0.000217,7]
[388844758,1759416064076,4717.1,0.00026,120]
[388844759,1759416075824,-465.74,0.00021945,30]
[388844760,1759416076074,-1500.0,0.00022465,28]
[388844761,1759416076108,-1500.0,0.00022465,28]
[388844762,1759416076140,-1500.0,0.00022465,28]
[388844763,1759416076175,-1500.0,0.00022465,28]
[388844764,1759416076214,-1500.0,0.00022465,28]
[388844765,1759416076250,-1500.0,0.00022465,28]
[388844766,1759416076282,-1500.0,0.00022465,28]
[388844767,1759416076309,-1500.0,0.00022465,28]
[388844768,1759416077154,-1500.0,0.00022465,28]
[388844769,1759416077186,-1500.0,0.00022465,28]
[388844770,1759416077214,-1500.0,0.00022465,28]
[388844771,1759416077241,-1500.0,0.00022465,28]
[388844772,1759416077270,-1500.0,0.00022465,28]
[388844773,1759416077296,-1500.0,0.00022465,28]
[388844774,1759416077324,-1500.0,0.00022465,28]
[388844775,1759416077353,-1500.0,0.00022465,28]
[388844776,1759416077380,-1500.0,0.00022465,28]
[388844777,1759416077406,-1500.0,0.00022465,28]
[388844778,1759416077434,-1500.0,0.00022465,28]
[388844779,1759416077462,-1500.0,0.00022465,28]
[388844780,1759416077489,-1500.0,0.00022465,28]
[388844781,1759416077516,-1500.0,0.00022465,28]
[388844782,1759416077544,-1500.0,0.00022465,28]
[388844783,1759416077571,-1305.25038,0.00022465,28]
[388844785,1759416112218,-178.62460765,0.00022496,19]
[388844791,1759416200946,-422.83194732,0.00022,14]
[388844792,1759416201071,-178.62460765,0.00022279,16]
[388844793,1759416201099,-178.62460765,0.00022388,17]
[388844794,1759416226446,-419.79384973,0.000217,7]
[388844801,1759416491719,16747.75450421,0.00016,2]
[388844837,1759416631571,-150.0,0.00019701,2]
[388844839,1759416631582,-150.0,0.00019701,2]
[388844840,1759416631592,-150.0,0.00019701,2]
[388844841,1759416631602,-150.0,0.00019701,2]
[388844843,1759416631612,-500.0,0.00019804,2]
[388844845,1759416631622,-250.0,0.00020213,2]
[388844847,1759416631632,-154.69,0.00020726,2]
[388844849,1759416631641,-250.0,0.00020732,2]
[388844851,1759416631651,-170.36461302,0.00020749,2]
[388844852,1759416631661,-160.32234043,0.00020849,2]
[388844854,1759416631670,-151.31,0.00020932,2]
[388844856,1759416631680,-167.91638687,0.00020986,2]
[388844858,1759416631691,-175.59,0.00021,2]
[388844860,1759416631700,-1196.84,0.00021,2]
[388844862,1759416631710,-1196.84,0.00021,2]
[388844864,1759416631719,-167.81,0.00021,2]
[388844866,1759416631729,-160.32234043,0.00021068,2]
[388844868,1759416631738,-1200.0,0.00021094,2]
[388844870,1759416631747,-150.99,0.00021095,2]
[388844872,1759416631756,-6733.62,0.00021095,2]
[388844874,1759416631765,-418.41,0.00021095,2]
[388844876,1759416631774,-413.69,0.00021095,2]
[388844878,1759416631783,-499.99,0.00021095,2]
[388844880,1759416631797,-12904.84,0.00021095,2]
[388844882,1759416631806,-1189.14980253,0.00021095,2]
[388844884,1759416631818,-553.402179,0.00021095,2]
[388844887,1759416631845,-466.77034477,0.00021095,2]
[388844891,1759416631872,-3099.2676737,0.00021095,2]
[388844893,1759416631882,-505.34,0.00021095,2]
[388844895,1759416631891,-4760.09154502,0.00021095,2]
[388844897,1759416631902,-816.0,0.00021095,2]
[388844899,1759416631913,-767.35981764,0.00021095,2]
[388844913,1759416632052,-1247.27999994,0.00021095,2]
[388844915,1759416632063,-1471.42628369,0.00021095,2]
[388844918,1759416632078,-579.82235371,0.00021095,2]
[388844920,1759416632087,-299.99,0.00021095,7]
[388844922,1759416632097,-1513.97904629,0.00021095,2]
[388844928,1759416632141,-2139.6062872,0.00021095,2]
[388845003,1759416637850,-946.81894517,0.00021095,2]
[388845007,1759416637874,-889.32572134,0.00021095,2]
[388845009,1759416637885,-999.99,0.00021095,2]
[388845011,1759416637895,-1580.37,0.00021095,2]
[388845013,1759416637904,-152.0,0.000211,2]
[388845014,1759416637913,-167.91638687,0.00021178,2]
[388845016,1759416637923,-177.0,0.00021269,2]
[388845018,1759416637934,-175.32,0.000213,2]
[388845021,1759416637943,-162.85232865,0.00021315,2]
[388845023,1759416637953,-92.12663676,0.00021315,2]
[388845025,1759416637965,-68.19570367,0.00021315,2]
[388845027,1759416637974,-167.91638687,0.00021342,2]
[388845029,1759416637984,-463.48,0.00021346,2]
[388845031,1759416637993,-177.0,0.00021392,2]
[388845032,1759416638003,-2000.0,0.000214,2]
[388845034,1759416638012,-168.0,0.00021485,2]
[388845036,1759416638022,-18782.89831958,0.000215,2]
[388845038,1759416638033,-177.0,0.00021501,2]
[388845040,1759416638051,-160.32234043,0.00021534,2]
[388845042,1759416638062,-167.91638687,0.00021534,2]
[388845044,1759416638073,-168.0,0.00021636,2]
[388845046,1759416638084,-232.868,0.00021657,2]
[388845048,1759416638095,-278.0232,0.00021657,2]
[388845050,1759416638105,-1454.8329,0.00021657,2]
[388845052,1759416638119,-2128.6538,0.00021657,2]
[388845054,1759416638129,-7000.2988,0.00021657,2]
[388845056,1759416638139,-500.0,0.00021672,2]
[388845058,1759416638149,-250.0,0.00021672,2]
[388845060,1759416638159,-1185.93258763,0.00021672,2]
[388845062,1759416638169,-1296.904,0.000217,2]
[388845064,1759416638179,-167.91638687,0.00021726,2]
[388845066,1759416638189,-177.0,0.0002174,2]
[388845068,1759416638199,-300.42589589,0.00021744,2]
[388845070,1759416638209,-500.0,0.00021744,2]
[388845072,1759416638219,-500.0,0.00021744,2]
[388845074,1759416638229,-160.32234043,0.00021781,2]
[388845076,1759416638239,-497.969735,0.000218,2]
[388845078,1759416638249,-14299.11514774,0.000218,4]
[388845080,1759416638262,-519.28351839,0.000218,4]
[388845082,1759416638274,-5631.22502711,0.000218,4]
[388845086,1759416638306,-416.53798778,0.000218,4]
[388845088,1759416638319,-19598.86348789,0.000218,4]
[388845090,1759416638329,-593.31996606,0.000218,2]
[388845092,1759416638340,-1000.0,0.00021808,2]
[388845094,1759416638349,-10641.265,0.00021817,2]
[388845096,1759416638360,-1000.0,0.00021817,2]
[388845098,1759416638370,-1008.0274,0.00021817,2]
[388845099,1759416638379,-5000.0,0.00021817,2]
[388845101,1759416638389,-159.91170013,0.00021817,2]
[388845103,1759416638399,-204.92245374,0.00021817,2]
[388845104,1759416638409,-10603.27520958,0.00021817,2]
[388845105,1759416638419,-177.0,0.00021842,2]
[388845107,1759416638429,-10603.2752095,0.00021847,2]
[388845108,1759416638439,-4182.3149214,0.00021865,2]
[388845109,1759416638448,-10603.2752095,0.00021878,2]
[388845110,1759416638458,-177.0,0.00021885,2]
[388845111,1759416638467,-500.0,0.00021887,2]
[388845112,1759416638476,-170.55108487,0.00021887,2]
[388845113,1759416638488,-231.60297529,0.00021887,2]
[388845114,1759416638497,-247.67003412,0.00021887,2]
[388845115,1759416638507,-225.60610918,0.00021887,2]
[388845116,1759416638516,-500.0,0.00021887,2]
[388845117,1759416638526,-4574.71213215,0.00021888,4]
[388845118,1759416638538,-715.61401512,0.00021888,4]